{"text_format":"3","workbook":"xlsx","n_sheets":13,"sheets":["Sākums","Pamati","Iepazīšanās ar funkcijām","AVERAGE","MIN un MAX","Datums un laiks","Teksta un skaitļu savienošana","IF priekšraksti","VLOOKUP","Nosacījuma funkcijas","Funkciju vednis","Formulu kļūdas","Papildinformācija"],"not_rendered":{"images":30,"defined_names":21},"read":"whole","date_system":"1900"}

{"sheet":"Sākums","index":0,"n_rows":4,"n_cols":1,"rows_kept":4}
[]
["Darba sākšana ar formulām"]
["Kad būsit izpildījis dažas darbības, būsit gatavs formulu un funkciju veidošanai programmā Excel — pasaulē visjaudīgākajā izklājlapu programmā."]
["Lai atgrieztos sākumā, nospiediet taustiņu kombināciju CTRL+HOME. Lai sāktu darbu ar ceļvedi, nospiediet taustiņu kombināciju CTRL+ PAGE DOWN."]

{"sheet":"Pamati","index":1,"n_rows":43,"n_cols":10,"rows_kept":43}
["Pamati: aritmētiskās darbības ar Excel"]
["Programmā Excel varat saskaitītu, atņemtu, reizinātu un dalītu, neizmantojot iebūvētās funkcijas. Ir jāizmanto tikai daži pamatoperatori: +, -, *, /. Visas formulas sākas ar vienādības zīmi (=).\n",null,"Izmantojamie skaitļi:",null,"Darbība:","Formulas:","Atbildes:"]
["Lai saskaitītu, atlasiet šūnu F3, rakstiet =C3+C4, pēc tam nospiediet taustiņu Enter. \n",null,1,null,"Saskaitīšana (+) ",null,{"$f":"C3+C4","v":3}]
["Lai atņemtu, atlasiet šūnu F4, rakstiet =C3-C4, pēc tam nospiediet taustiņu Enter. ",null,2,null,"Atņemšana (-) ",null,{"$f":"C3-C4","v":-1}]
["Lai reizinātu, atlasiet šūnu F5, rakstiet =C3*C4, pēc tam nospiediet taustiņu Enter.\n",{"$nulls":3},"Reizināšana (*) ",null,{"$f":"C3*C4","v":2}]
["Lai dalītu, atlasiet šūnu F6, rakstiet C3/C4, pēc tam nospiediet taustiņu Enter.\n",{"$nulls":3},"Dalīšana (/) ",null,{"$f":"C3/C4","v":0.5}]
["Izmēģiniet: mainiet skaitļus šūnā C3 un C4, un vērojiet, kā automātiski mainās formulas rezultāti.",{"$nulls":3},"Kāpināšana (^) ",null,{"$f":"C3^C4","v":1}]
["PAPILDIESPĒJA Vērtību varat kāpināt, izmantojot simbolu jumtiņa (^) simbolu, piemēram, =A1^A2. Ievadiet to ar taustiņu kombināciju Shift+6. Šūnā F7 ievadiet =C3^C4."]
["Uz leju, lai uzzinātu vairāk"]
["Nākamā darbība"]
["Vēl par formulām, šūnām un diapazoniem"]
["Excel sastāv no atsevišķām šūnām, kuras ir sagrupētas rindās un kolonnās. Rindas ir numurētas, bet kolonnas ir apzīmētas ar burtiem. Ir vairāk nekā 1 miljons rindu un 16 000 kolonnu, un tajās visās varat ievietot formulas. \n"]
["Formulās var būt atsauces uz šūnām, šūnu atsauču diapazoni, operatori un konstantes. Lūk, formulu piemēri:\n\n=A1+B1\n=10+20\n=SUM(A1:A10)\n\n"]
["Ievērosit, ka trešajā piemērā ir izmantota funkcija SUM. Funkcija ir iepriekšizveidota komanda, kas paņem vērtību vai vērtības, tās aprēķina noteiktā veidā un atgriež rezultātu. Piemēram, funkcija SUM ņem jūsu norādītās šūnu atsauces vai diapazonus un tos saskaita kopā. Šajā piemērā tā ņem šūnas no A1 līdz A10 un saskaita kopā. Programmā Excel ir vairāk nekā 400 funkciju, ar kurām varat iepazīties cilnē Formulas.\n"]
["Formulas, kurās ir funkcijas, sākas ar vienādības zīmi, pēc tās ir funkcijas nosaukums un tās argumenti (vērtības, ko funkcija izmanto aprēķinos), kas ielikti iekavās. \n"]
["Formulu apstiprina, nospiežot taustiņu Enter. Kad to izdarāt, formula tiek aprēķināta un šūnā parādīts rezultāts. Pati formula ir redzama formulu joslā zem lentes vai, nospiežot taustiņu F2, varat atvērt rediģēšanas režīmu, kur šūnā ir redzama formula. Vēlreiz nospiediet taustiņu Enter, lai pabeigtu formulu un aprēķinātu rezultātu.\n\n"]
["Dažu formulu skaidrojumi"]
["=10+20 ir formula, kur 10 un 20 ir konstantes, bet simbols + ir operators."]
["=SUM(A1:A10) ir formula, kur SUM ir funkcijas nosaukums, formulas argumenti ir ielikti iekavās, bet A1:A10 ir funkcijas šūnu diapazons."]
["=SUM(A1:A10;C1:C10) ir formula, kur SUM ir funkcijas nosaukums, formulas argumenti ir ielikti iekavās, bet A1:A10 ir funkcijas šūnu diapazons.=SUM(A1:A10) ir formula, kur SUM ir funkcijas nosaukums, formulas argumenti ir ielikti iekavās, bet A1:A10;C1:C10 ir funkcijas šūnu diapazoni, kas atdalīti ar komatu."]
["NODERĪGA INFORMĀCIJA Konstantes ir vērtības, ko ievadāt šūnās un formulās. Ja =10+20 aprēķina rezultāts ir tāds pats kā =A1+B1 rezultāts, konstantes nav laba izvēle. Kāpēc? Tāpēc, ka konstanti nevar ērti ieraudzīt, ja vien neatlasa šūnu un to neatrod. Līdz ar to vēlāk tas var sagādāt grūtības nomainīt. Daudz vieglāk ir ievadīt konstantes šūnās, kur tās var viegli pielāgot, un formulās ievietot atsauces uz tām.\n\nPiemēram: Zemāk atlasiet dzelteno šūnu ar 12. Redzēsit, ka esam izmantojuši funkciju SUM ar šūnu diapazonu. Mēs nerakstījām “4” vai “8” tieši formulā. \n"]
["Atpakaļ"]
["Tālāk"]
["Papildinformācija tīmeklī"]
["Programma Excel kā kalkulators"]
["Programmas Excel formulu apskats"]
["Excel funkcijas (pa kategorijām) "]
["Excel funkcijas (alfabēta secībā) "]
["Bezmaksas Excel apmācība tiešsaistē"]
{"$rows_empty":10}
[{"$nulls":9},"Vērtības"]
[{"$nulls":9},4]
[{"$nulls":9},8]
[{"$nulls":9},{"$f":"SUM(J41:J42)","v":12}]

{"sheet":"Iepazīšanās ar funkcijām","index":2,"n_rows":51,"n_cols":7,"rows_kept":51}
["Iepazīšanās ar funkcijām"]
["Funkcijas sniedz iespēju veikt dažādas darbības, piemēram, izpildīt matemātiskas darbības, uzmeklēt vērtības vai pat aprēķināt datumus un laikus. Izmēģināsim vairākus veidus, kā saskaitīt vērtības, izmantojot funkciju SUM.",null,"Augļi","Daudzums",null,"Gaļa","Daudzums"]
["Zem sadaļas Augļi kolonnas Daudzums (šūnā D7) ievadiet =SUM(D3:D6) vai ierakstiet =SUM(, pēc tam ar peli atlasiet šo diapazonu un nospiediet taustiņu Enter. Tā tiks summētas vērtības, kas atrodas šūnās D3, D4, D5 un D6. Atbildei jābūt 170.\n",null,"Āboli",50,null,"Liellopu gaļa",50]
["Tagad Izmēģināsim automātisko summēšanu. Atlasiet šūnu zem šīs kolonnas sadaļā Gaļa (šūnu G7), pēc tam dodieties uz cilni Formulas > Automātiskā summēšana > atlasiet SUM. Redzēsit, ka programma Excel automātiski jūsu vietā ievada formulu. Nospiediet taustiņu Enter, lai apstiprinātu. Līdzeklī Automātiskā summēšana ir visas biežāk izmantotās funkcijas.\n",null,"Apelsīni",20,null,"Vistas gaļa",30]
["Lūk, arī ērti īsinājumtaustiņi. Atlasiet šūnu D15, pēc tam nospiediet Alt *, pēc tam taustiņu Enter. Tas automātiski ievada SUM.",null,"Banāni",60,null,"Cūkgaļa",10]
["Uz leju, lai uzzinātu vairāk",null,"Citroni",40,null,"Zivis",50]
["PAPILDIESPĒJA\nIzmēģiniet funkciju COUNT, izmantojot kādu no jau izmēģinātajām metodēm. Funkcija COUNT saskaita šūnas diapazonā, kas satur skaitļus.",null,"SUM > ",{"$f":"SUM(D3:D6)","v":170},null,"SUM > "]
["Nākamā darbība"]
["Vēl par funkcijām",null,"Prece","Daudzums",null,"Prece","Daudzums"]
["Dodieties uz cilni Formulas un pārlūkojiet funkciju bibliotēku, kurā funkcijas ir uzskaitītas pa kategorijām, piemēram, Teksts, Datums un laiks, utt. Izvēloties Ievietot funkciju, varat meklēt funkcijas pēc nosaukuma un palaist funkciju vedni, kas palīdzēs izveidot formulu. \n\nKad, sākot rakstīt funkcijas nosaukumu, nospiežat taustiņu =, programma Excel palaiž līdzekli Intellisense. Tas uzskaita visas funkcijas, kuras sākas ar jūsu ievadītajiem burtiem. Kad esat atradis vajadzīgo, nospiediet tabulēšanas taustiņu, un programma Excel automātiski pabeigs funkcijas nosaukumu un ievadīs kreiso iekavu. Tiek parādīti arī izvēles un obligātie argumenti. \n\n\n\nTagad aplūkosim, kā uzbūvētas dažas funkcijas. Funkcijas SUM uzbūve ir šāda:",null,"Maize",50,null,"Maize",50]
["Ja funkcija SUM prastu runāt, tā teiktu, atgrieziet visu to vērtību summu, kas atrodama šūnās no D35 līdz D38, kā arī visā kolonnā H. SUM ir funkcijas nosaukums, D35:D38 ir pirmā diapazona arguments, kas gandrīz vienmēr ir obligāti jānorāda, bet H:H ir otrā diapazona arguments, kas ir atdalīts ar komatu. Tagad izmēģināsim funkciju, kurai nav jānorāda argumenti.\n",null,"Virtuļi",100,null,"Virtuļi",100]
["Funkcija TODAY atgriež šodienas datumu. Tā automātiski atjauninās, kad programma Excel pārrēķina.",null,"Cepumi",40,null,"Cepumi",40]
["SKATIET ŠO\nAtlasiet šīs šūnas. Programmas Excel loga apakšējā labajā stūrī atrodiet SUMMA: 170, kas atrodas apakšējā joslā. To dēvē par statusa joslu. Tas ir tikai vēl viens veids, kā ātri atrast summu un citu detalizētu informāciju par atlasīto šūnu vai diapazonu. ",null,"Kūkas",50,null,"Kūkas",50]
["SVARĪGI\nVeiciet dubultklikšķi uz šīs šūnas. Jūs pamanīsit 100 beigās. Lai gan ir iespējams ierakstīt skaitļus šādās formulās, mēs to neiesakām, ja vien tas nav pilnībā nepieciešams. Tā tiek dēvēta par konstanti, un ir viegli aizmirst, ka tā ir iekļauta. Tā vietā ieteicams atsaukties uz citu šūnu, piemēram, šūnu F51. Tādējādi to ir viegli redzēt, un tā nav paslēpta formulā. ",null,"Pīrāgi",20,null,"Pīrāgi",20]
["Papildinformācija tīmeklī",null,"SUM > ",null,null,"COUNT >"]
["Viss par funkciju SUM"]
["Automātiskās summēšanas izmantošana skaitļu summēšanai"]
["Viss par funkciju COUNT"]
["Bezmaksas Excel apmācība tiešsaistē"]
["Atpakaļ uz sākumu"]
["Nākamā darbība"]
{"$rows_empty":12}
[null,null,"Augļi","Daudzums"]
[null,null,"Āboli",50]
[null,null,"Apelsīni",20]
[null,null,"Banāni",60]
[null,null,"Citroni",40]
[null,null,"SUM > ",{"$f":"SUM(D35:D38)","v":170}]
[]
[]
[]
[]
[null,null,"Prece","Daudzums"]
[null,null,"Automašīnas",20]
[null,null,"Kravas automašīnas",10]
[null,null,"Velosipēdi",10]
[null,null,"Skeitborda dēļi",40]
[]
[{"$nulls":3},"Kopā:",null,"Papildu vērtība","Jaunā kopsumma"]
[{"$nulls":3},{"$f":"SUM(D45:D48,100)","v":180},null,100,{"$f":"SUM(D45:D48,F51)","v":180}]

{"sheet":"AVERAGE","index":3,"n_rows":15,"n_cols":7,"rows_kept":15}
["Funkcija AVERAGE"]
["Lai iegūtu šūnu diapazona skaitļu vidējo vērtību, izmantojiet funkciju AVERAGE.",null,"Augļi","Daudzums",null,"Gaļa","Daudzums"]
["Atlasiet šūnu D7, pēc tam izmantojiet automātiskā summēšana, lai pievienotu funkciju AVERAGE.",null,"Āboli",50,null,"Liellopu gaļa",50]
["Tagad atlasiet šūnu G7 un ievadiet AVERAGE funkciju, ierakstot =AVERAGE(G3:G6). ",null,"Apelsīni",20,null,"Vistas gaļa",30]
["Šūnā D15 varat izmantot automātiskā summēšana vai rakstot ievadīt citu AVERAGE funkciju. ",null,"Banāni",60,null,"Cūkgaļa",10]
["SKATIET ŠO\nAtlasiet jebkuru skaitļu diapazonu, un pēc tam statusa joslā uzreiz varat ieraudzīt vidējo vērtību.\n",null,"Citroni",40,null,"Zivis",50]
["Aktivizēt iepriekšējo lapu",null,"AVERAGE >",null,null,"AVERAGE >"]
["Pāriet uz nākamo lapu"]
["PAPILDIESPĒJA\nIzmēģiniet šeit izmantot funkciju MEDIAN vai MODE. \n\nMEDIAN piedāvā vērtību, kas atrodas datu kopas vidū, savukārt \nMODE piedāvā visbiežāk sastapto vērtību.\n",null,"Prece","Daudzums",null,"Prece","Daudzums"]
["Saites uz papildinformāciju tīmeklī",null,"Maize",50,null,"Maize",50]
["Atlasiet, lai tīmeklī uzzinātu visu par funkciju AVERAGE",null,"Virtuļi",100,null,"Virtuļi",100]
["Atlasiet, lai tīmeklī uzzinātu visu par funkciju MEDIAN",null,"Cepumi",40,null,"Cepumi",40]
["Atlasiet, lai tīmeklī uzzinātu visu par funkciju MODE",null,"Kūkas",50,null,"Kūkas",50]
["Atlasiet, lai uzzinātu par Excel bezmaksas apmācību tīmeklī",null,"Pīrāgi",20,null,"Pīrāgi",20]
[null,null,"AVERAGE >"]

{"sheet":"MIN un MAX","index":4,"n_rows":15,"n_cols":7,"rows_kept":15}
["Funkcija MIN un MAX"]
["Izmantojiet funkciju MIN, lai iegūtu šūnu diapazona vismazāko skaitli.",null,"Augļi","Daudzums",null,"Gaļa","Daudzums"]
["Izmantojiet funkciju MAX, lai iegūtu šūnu diapazona vislielāko skaitli.",null,"Āboli",50,null,"Liellopu gaļa",50]
["Atlasiet šūnu D7, pēc tam izmantojiet automātiskās summēšanas vedni, lai pievienotu funkciju MIN.\n",null,"Apelsīni",20,null,"Vistas gaļa",30]
["Tagad atlasiet šūnu G7 un ievadiet MAX funkciju, ierakstot =MAX(G3:G6).\n",null,"Banāni",60,null,"Cūkgaļa",10]
["Šūnā D15 varat izmantot automātiskās summēšanas vedni vai ierakstot ievadīt MIN vai MAX funkciju. \n",null,"Citroni",40,null,"Zivis",50]
["Papildinformācija tīmeklī\n",null,"MIN >",null,null,"MAX >"]
["Viss par funkciju MIN"]
["Viss par funkciju MAX",null,"Prece","Daudzums",null,"Prece","Daudzums"]
["Bezmaksas Excel apmācība tiešsaistē",null,"Maize",50,null,"Maize",50]
["NODERĪGA INFORMĀCIJA\nFunkciju MIN vai MAX varat izmantot ar vairākiem diapazoniem vai vērtībām, lai parādītu lielāko vai mazāko no šīm vērtībām, piemēram =MIN(A1:A10;B1:B10) vai =MAX(A1:A10;B1), kur B1 satur sliekšņvērtību, piemēram, 10, un šajā gadījumā formula nekad neatgriezīs rezultātu, kas ir mazāks par 10.\n",null,"Virtuļi",100,null,"Virtuļi",100]
[null,null,"Cepumi",40,null,"Cepumi",40]
[null,null,"Kūkas",50,null,"Kūkas",50]
[null,null,"Pīrāgi",20,null,"Pīrāgi",20]
[null,null,"MIN vai MAX >",{"$nulls":3},{"$f":"MIN(G10:G14,10)","v":10}]

{"sheet":"Datums un laiks","index":5,"n_rows":47,"n_cols":6,"rows_kept":47,"merged":[[4,2,4,3],[26,2,26,3],[30,2,30,3],[44,2,44,3]]}
["Datuma funkcijas"]
["Excel var norādīt pašreizējo datumu, ņemot vērā datora reģionālajos iestatījumus. Varat arī saskaitīt un atņemt datumus."]
["Skatiet funkciju TODAY, kura norāda šodienas datumu. Šīs ir tiešās jeb mainīgās funkcijas, tāpēc, darbgrāmatu atverot rīt, tai būs rītdienas datums. Šūnā D6 ievadiet =TODAY(). \n"]
["Datumu atņemšana — šūnā D7 ievadiet savu nākamo dzimšanas dienu formātā YY\\.MM\\.DD\\. un skatiet, kā Excel aprēķina, cik dienu līdz tai atlicis, šūnā D8 izmantojot formulu =D7-D6.\n"]
["Datumu saskaitīšana — pieņemsim, ka vēlaties uzzināt, kurā dienā būs jāmaksā rēķins vai kad būs jāatdod bibliotēkas grāmata. Lai to noteiktu, datumam varat pieskaitīt dienas. Šūnā D10 ievadiet nejauši izvēlētu dienu skaitu. Šūnā D11 pievienojām =D6+D10, lai aprēķinātu termiņa datumu no šodienas.\n",null,"Datuma funkcijas"]
["NODERĪGA INFORMĀCIJA\nExcel seko datumiem un laikiem, skaitot dienas no 1900. gada 1. janvāra. Laiki tiek fiksēti pa minūtēs sadalītām dienas daļām. Tādējādi 2017.01.01. plkst 12:30  faktiski tiek fiksēts kā 42736,5208. Ja laiks un datums tiek rādīts šādu skaitļu formā, jūs varat nospiest taustiņu kombināciju Ctrl+1 > Skaitlis > atlasiet datums vai laiks formātu. ",null,"Šodienas datums:",null,null,{"$f":"IF(D6=TODAY(),\"Tieši tā\",\"\")","v":""}]
["SVARĪGI\nJa nevēlaties, lai Excel rādītu negatīvu skaitli, jo neesat vēl ievadījis savu dzimšanas dienu, varat izmantot IF funkciju šādi: =IF(D7=““;“”;D7-D6), kas nozīmē: “JA šūna D7 ir tukša, tad nekas nav jārāda, pretējā gadījumā jārāda D7 mīnus D6”.\n",null,"Jūsu dzimšanas diena:"]
["Laika funkcijas",null,"Dienas līdz jūsu dzimšanas dienai:",{"$f":"D7-D6","v":0}]
["Excel var norādīt pašreizējo laiku, ņemot vērā datora reģionālajos iestatījumus. Varat arī saskaitīt un atņemt laikus. Piemēram, jums jāseko līdzi, cik stundu katru nedēļu strādā darbinieks, lai varētu aprēķināt viņa algu un nostrādātās virsstundas.\n"]
["Šūnā D28 ievadiet =NOW(), kas norādīs pašreizējo laiku, un atjauninās to ikreiz, kad Excel veiks aprēķinus. Ja ir jāmaina laika formāts, varat doties uz Ctrl+1 > Skaitlis > Laiks > Atlasīt vajadzīgo formātu.\n",null,"Atvieglotā perioda dienas:"]
["Saskaitiet stundas starp laikiem — šūnā D36 esam ievadījuši =((D35-D32)-(D34-D33))*24, kas aprēķina darbinieka darba sākuma un beigu laiku, bet pēc tam atņem pusdienlaiku. Formulas beigās pievienotais *24 pārvērš stundās Excel izmantoto dienas daļu. Taču šūnai ir jābūt formatētai kā skaitlim. Šajā nolūkā dodieties uz Sākums > Formatēšana > Šūnu formatēšana (Ctrl+1) > Skaitlis > Skaitlis > Decimāldaļas vietas: 2.\n\n",null,"Rēķina apmaksas termiņš:",{"$f":"D6+D10","v":"00:00:00"}]
["Ja šī formula pratu runāt, tā teiktu: “Aiziešanas laiku atņemiet no ierašanās laika, pēc tam atņemiet iešanu pusdienās/atnākšanu no pusdienām, pēc tam to reizinot ar 24, lai Excel daļlaiku pārvērstu stundās”, jeb =((Aiziešanas laiks-Ierašanās laiks)-(No pusdienām-Uz pusdienām))*24."]
["Atpakaļ"]
["Tālāk"]
["Papildinformācija tīmeklī"]
["Viss par funkciju TODAY"]
["Viss par funkciju NOW"]
["Viss par funkciju DATE"]
["Bezmaksas Excel apmācība tiešsaistē"]
{"$rows_empty":7}
[null,null,"Laika funkcijas"]
[null,null,"Pašreizējais laiks:"]
[]
[]
[null,null,"Nostrādātās stundas dienā"]
[null,null,"Ierašanās laiks:","08:00:00"]
[null,null,"Uz pusdienām:","12:00:00"]
[null,null,"No pusdienām:","13:00:00"]
[null,null,"Aiziešanas laiks:","17:00:00"]
[null,null,"Stundu kopskaits:",{"$f":"((D35-D32)-(D34-D33))*24","v":8.000000000000002}]
{"$rows_empty":8}
[null,null,"Statiskais datums un laiks"]
[null,null,"Datums:","2017-09-27"]
[null,null,"Laiks:","08:52:00"]

{"sheet":"Teksta un skaitļu savienošana","index":6,"n_rows":37,"n_cols":6,"rows_kept":37,"merged":[[26,2,26,3],[30,2,30,3],[34,2,34,3]]}
["Dažādu šūnu teksta savienošana"]
["Programmā Excel daudzkārt ir nepieciešams savienot tekstu, kas atrodas dažādās šūnās. Šajā piemērā piedāvāta ļoti bieži sastopama tabula, kurā norādīti vārdi un uzvārdi, kurus jāsakombinē kā vārdu un uzvārdu, kā pilno vārdu vai citādi. Par laimi, programmā Excel to var izdarīt, izmantojot simbolu &, ko varat ievadīt ar taustiņu Shift+7.\n",null,"Vārds","Uzvārds","Uzvārds, vārds","Pilns vārds"]
["Lai savienotu uzvārdus un vārdus, šūnā E3 ievadiet =D3&C3. \n",null,"Beatrise","Kļaviņa",{"$f":"D3&\", \"&C3","v":"Kļaviņa, Beatrise"},{"$f":"C3&\" \"&D3","v":"Beatrise Kļaviņa"}]
["KļaviņaBeatrise nav gluži pārskatāmi. Ir jāpievieno komats un atstarpe. Šajā nolūkā izmantosim pēdiņas, lai izveidotu jaunu teksta virkni. Šajā gadījumā ievadiet =D3&“; “&C3. Elements &“; “& veidos komata un atstarpes savienojumu ar šūnu tekstu.\n",null,"Alfons","Vītols"]
["Lai izveidotu pilnu lietotāja vārdu, savienosim vārdu un uzvārdu, bet izmantosim atstarpi bez komata. Šūnā F3 ievadiet =C3&“ “&D3.\n",null,"Ilgonis","Purmals"]
["Uz leju, lai uzzinātu vairāk",null,"Daina","Dūmiņa"]
["Tālāk",null,"Sarmis","Saulītis"]
["Teksts un skaitļi kopā",null,"Matiass","Polis"]
["Tagad izmantosim simbolu &, lai savienotu tekstu un skaitļus, ne tikai tekstu un tekstu\n\nAplūkojiet šūnas C28:D29. Vai ievērojat, ka datums un laiks atrodas atsevišķās šūnās? Tās varat savienot ar simbolu &, kā tas redzamas šūnās C32:C33, tomēr nav gluži pareizi, vai ne? Diemžēl programma Excel nezina, kā vēlaties formatēt skaitļus, tāpēc tā skaitļus sadala līdz pat mazākajam formātam, un šajā gadījumā tas ir sērijas datums. Lai iegūtajā teksta virknē formulas skaitliskā daļa tiktu attēlota vajadzīgajā veidā, mums programmai Excel tas ir precīzi jānorāda. Šajā nolūkā varat izmantot funkciju TEXT un formāta kodu.",null,"Raimonds","Turins"]
["Šūnā C36 ievadiet =C28&“ “&TEXT(D28;“YYYY\\.MM\\.DD\\.”). YYYY\\.MM\\.DD\\. ir ASV formāta kods, kas apzīmē Gads.Mēnesis.Diena, piemēram, 2017.09.25.\n",null,"Izabella","Celma"]
["Šūnā C37 ievadiet =C29&“ “&TEXT(D29;“H:MM“). H:MM ir ASV formāta kods, kas apzīmē: Stundas:Minūtesutes, piemēram, 1:30.\n\n"]
["SKATIET ŠO\nFormulas, jo īpaši lielās, dažkārt var būt grūti izlasīt, taču starp to daļām varat ievietot atstarpes, piemēram, šādi:\n\n=C28 & “ “ & TEXT(D28;“YYYY\\.MM\\.DD\\.“)"]
["VĒRTS IZPĒTĪT\nJa nezināt, kādu formāta kodu izmantot, šūnu formatēšanai jums vēlamajā veidā izmantojiet Ctrl+1 > Skaitlis. Pēc tam atlasiet opciju Pielāgota. Varat nokopēt formāta kodu, kas tiek norādīts zem formulas."]
["Papildinformācija tīmeklī"]
["Viss par funkciju TEXT"]
["Teksta un skaitļu kombinēšana"]
["Bezmaksas Excel apmācība tiešsaistē"]
{"$rows_empty":9}
[null,null,"Teksta un skaitļu izmantošana"]
[null,null,"Šodienas datums:",{"$f":"TODAY()","v":"2021-10-19"}]
[null,null,"Pašreizējais laiks:",{"$f":"NOW()","v":44488.698755324076}]
[]
[null,null,"Teksta un skaitļu savienošana"]
[null,null,{"$f":"C28&\" \"&D28","v":"Šodienas datums: 44488"}]
[null,null,{"$f":"C29&\" \"&D29","v":"Pašreizējais laiks: 44488,6987553241"}]
[]
[null,null,"Teksta un skaitļu formatēšana"]
[null,null,{"$f":"C28 &\" \"& TEXT(D28,\"YYYY\\.MM\\.DD\\.\")","v":"Šodienas datums: 2021.10.19."}]
[null,null,{"$f":"C29&\" \"&TEXT(D29,\"H:MM\")","v":"Pašreizējais laiks: 16:46"}]

{"sheet":"IF priekšraksti","index":7,"n_rows":37,"n_cols":6,"rows_kept":37,"merged":[[7,2,7,3]]}
["IF priekšraksti"]
["IF priekšraksti sniedz iespēju veikt loģiskus nosacījumu salīdzinājumus. IF priekšraksts norāda — ja viens nosacījums ir patiess, jādara viens, bet pretējā gadījumā jādara kaut kas cits. Formulas var atgriezt tekstu, vērtības vai pat vēl citus aprēķinus."]
["Šūnā D9 ievadiet =IF(C9=“Ābols”;TRUE;FALSE). Pareizā atbilde ir TRUE. \n"]
["Šūnu D9 iekopējiet šūnā D10. Atbildei ir jābūt FALSE, jo apelsīns nav ābols.\n"]
["Izmēģiniet citu piemēru, aplūkojot formulu šūnā D12. Sākumam piedāvājām formulu =IF(C12<100;“Mazāk nekā 100”;“Vairāk nekā vai vienāds ar 100”). Kas notiek, ja šūnā C12 ievada skaitli, kas ir lielāks par 100?\n"]
["SVARĪGA INFORMĀCIJA\nTRUE un FALSE ir vārdi Excel formulās, kas atšķirībā no citiem vārdiem netiek likti pēdiņās, turklāt programma Excel tos automātiski raksta ar lielajiem burtiem. Arī skaitļi nav jāliek pēdiņās. Parastais teksts, piemēram, Jā vai Nē ir jāliek pēdiņās šādi: \n=IF(C9=\"Ābols\";\"Jā\";\"Nē\")"]
["Uz leju, lai uzzinātu vairāk"]
["Tālāk",null,"IF priekšraksti"]
["IF priekšraksts ar citu funkciju",null,"Ābols"]
["IF priekšraksti var arī izraisīt papildu aprēķinu izpildi, ja tiek izpildīts noteikts nosacījums. Šeit novērtēsim šūnu, lai redzētu, vai ir jāiekasē PVN nodoklis, un aprēķināsim to, ja nosacījums būs patiess.\n",null,"Apelsīns"]
["Šūnā F33 mēs ievadījām =IF(E33=“Jā”;F31*PVN;0), kur PVN tiek iestatīts kā nosauktais diapazons ar vērtību 0,0825. Piemēra formulā teikts: ja šūna E33 ir vienāda ar Jā, tad šūna F31 jāreizina ar PVN, pretējā gadījumā atgriež 0.\n\nIzmēģiniet šūnā E33 Jā nomainīt ar Nē, un redzēsit, kā mainās aprēķins."]
["Tālāk esam pievienojuši IF priekšrakstu, lai aprēķinātu piegādes izdevumus, ja nepieciešams aprēķināt nosūtīšanas. Šūnā F35 redzams =IF(E35=“Jā”,SUM(D28:D29)*1,25,0). Tas nozīmē: “Jā šūnā E35 ir Jā, tad summu no tabulas kolonnas Daudzums reiziniet ar 1,25, pretējā gadījumā atgriež 0\".\n",null,50,{"$f":"IF(C12<100,\"Mazāk nekā 100\",\"Vairāk nekā 100 vai vienāds ar 100\")","v":"Mazāk nekā 100"}]
["Pēc tam formulā šūnas F35 vērtību 1,25 nomainiet uz “Piegāde”. Kad sākat rakstīt, programma Excel automātiski izlabo kļūdas, ja tādas jums rodas. Kad tiek piedāvāts labojums, nospiediet tabulēšanas taustiņu, lai ievadītu pareizo variantu. Šis ir nosauktais diapazons, un mēs to ievadījām no Formulas > Definēt nosaukumu. Tagad, ja būs jāmaina piegādes izmaksas, tas būs jādara tikai vienā vietā, un jebkur darbgrāmatā varēsit izmantot nosaukumu Piegāde.\n\n"]
["NODERĪGA INFORMĀCIJA\nKad veidojat formulu, programma Excel formulā ap izmantotajiem diapazoniem automātiski apvelk krāsainu apmali; arī attiecīgie diapazoni formulā ir tajā pašā krāsā. To varat redzēt, atlasot šūnu F33 un nospiežot taustiņu F2, lai formulu rediģētu."]
["EKSPERTU PADOMS\nIzmantojot nosauktos diapazonus, varat vienuviet definēt nosacījumus vai vērtības un tās atkārtoti izmantot visā darbgrāmatā. Visus šīs darbgrāmatas nosauktos diapazonus varat skatīt, izmantojot cilni Formulas > Nosaukumu pārvaldnieks. Lai iegūtu papildinformāciju, noklikšķiniet šeit.\n"]
["Atpakaļ"]
["Tālāk"]
["Papildinformācija tīmeklī"]
["Viss par funkciju IF"]
["Viss par funkciju IFS"]
["Paplašinātie IF priekšraksti"]
["Bezmaksas Excel apmācība tiešsaistē"]
[]
[]
[]
[]
[null,null,"Prece","Skaits","Cena","Kopā"]
[null,null,"Piederums",2,{"v":9.760711585683554,"d":"9.76 EUR"},{"$f":"'IF priekšraksti'!$E$28:$E$29*'IF priekšraksti'!$D$28:$D$29","v":{"v":19.521423171367108,"d":"19.52 EUR"}}]
[null,null,"Ietaise",3,{"v":3.4189202461080024,"d":"3.42 EUR"},{"$f":"'IF priekšraksti'!$E$28:$E$29*'IF priekšraksti'!$D$28:$D$29","v":{"v":10.256760738324008,"d":"10.26 EUR"}}]
[]
[{"$nulls":3},"Apakšsumma",{"$f":"SUM('IF priekšraksti'!$E$28:$E$29)","v":{"v":13.179631831791557,"d":"13.18 EUR"}},{"$f":"SUM('IF priekšraksti'!F28:F29)","v":{"v":29.778183909691116,"d":"29.78 EUR"}}]
[]
[{"$nulls":3},"PVN?","Jā",{"$f":"IF(E33=\"Jā\",F31*PVN,0)","v":{"v":2.456700172549517,"d":"2.46 EUR"}}]
[]
[{"$nulls":3},"Piegāde?","Jā",{"$f":"IF(E35=\"Jā\",SUM(D28:D29)*1.25,0)","v":{"v":6.25,"d":"6.25 EUR"}}]
[]
[{"$nulls":3},"Kopā",null,{"$f":"SUM(F33,F31,F35)","v":{"v":38.48488408224063,"d":"38.48 EUR"}}]

{"sheet":"VLOOKUP","index":8,"n_rows":43,"n_cols":7,"rows_kept":43}
["VLOOKUP"]
["VLOOKUP ir viena no visbiežāk izmantotajām programmas Excel funkcijām (un arī viena no mūsu iecienītākajām!). Ar VLOOKUP varat meklēt vērtību kreisajā kolonnā, un, ja tiek atrast atbilstība, informācija tiek atgriezta citā kolonnā pa labi. VLOOKUP ir šāda:\n"]
["=VLOOKUP(A1;B:C;2;FALSE)"]
["Ko vēlaties meklēt?"]
["Ja meklēto atrodat, cik kolonnas pa labi ir jāuzrāda vērtība?"]
["Kur to vēlaties meklēt?"]
["Vai vēlaties precīzu vai aptuvenu atbilstību?"]
["Šūnā D22 ievadiet =VLOOKUP(C22;C17:D20;2;FALSE). Pareizā atbilde par āboliem ir 50. VLOOKUP meklēja ābolus, atrada, pēc tam pagāja par kolonnu pa labi un atgrieza daudzumu.\n\n"]
["Tagad to izmēģiniet sadaļā Gaļa, šūnā G22. Būtu jāsanāk: =VLOOKUP(F22;F17:G20;2;FALSE).\n\n"]
["EKSPERIMENTS\nIzmēģiniet dažādu vienumu atlasīšanu nolaižamajos sarakstos. Redzēsit, kā momentā atjauninās rezultātu šūnas un parāda jaunās vērtības."]
["Uz leju, lai uzzinātu vairāk"]
["Tālāk"]
["VLOOKUP un #N/A"]
["Neizbēgami rodas situācijas, kad VLOOKUP nevar atrast prasīto, un tā atgriež kļūdu (#N/A). Dažreiz tā notiek, jo uzmeklējamā vērtība vienkārši nepastāv vai atsauces šūnā vēl nav vērtības.\n"]
["Ja zināt, ka uzmeklējamā vērtība pastāv, bet vēlaties paslēpt kļūdu, ja uzmeklējamā šūna ir tukša, tad varat izmantot IF priekšrakstu. Šādā gadījumā mēs esošo VLOOKUP formulu šūnā D43 iekļaujam šādi:\n\n=IF(C43=“”;“”;VLOOKUP(C43;C37:D41;2;FALSE))\n\nTas nozīmē — ja šūna C43 ir vienāda ar neko (“”), tad nekas nav jāatgriež, pretējā gadījumā ir jāatgriež funkcijas VLOOKUP rezultāti. Pievērsiet uzmanību, ka formulas beigās ir divas labās iekavas. Otrā aizver IF priekšrakstu.\n"]
["Ja nezināt, vai uzmeklējamā vērtība pastāv, taču vēlaties izvairīties no kļūdas #N/A, tad šūnā G43 varat izmantot kļūdu apstrādes funkciju IFERROR: =IFERROR(VLOOKUP(F43;F37:G41;2;FALSE),“”). IFERROR nozīmē: ja funkcija VLOOKUP atgriež derīgu rezultātu, tad tas ir jārāda, pretējā gadījumā nav jārāda nekas (“”). Piemērā parādām“neko” (“”), bet var arī izmantot ciparus (0,1, 2, utt.) vai tekstu, piemēram, “Formula nav pareiza”.\n",null,"Augļi","Daudzums",null,"Gaļa","Daudzums"]
["SVARĪGI\nFunkciju IFERROR uzskata par vispārēju kļūdu apstrādātāju, jo ar to var izvairīties no kļūdu radīšanas, ja formula tādu uzrāda. Tas var izraisīt problēmas, ja Excel parāda paziņojumu, ka formulā ir pamatota kļūda, kas būti jāizlabo.\n\nPraktisks ieteikums: formulās nepievienot kļūdu apstrādātājus, ja vien nav pilnīgas pārliecības, ka tiek darbosies pareizi.",null,"Āboli",50,null,"Liellopu gaļa",50]
["Atpakaļ",null,"Apelsīni",20,null,"Vistas gaļa",30]
["Tālāk",null,"Banāni",60,null,"Cūkgaļa",10]
["Papildinformācija tīmeklī",null,"Citroni",40,null,"Zivis",50]
["Viss par funkciju VLOOKUP"]
["Viss par funkcijām INDEX/MATCH",null,"Āboli",null,null,"Cūkgaļa"]
["Viss par funkciju IFERROR"]
["Rakurstabulu izmantošana darblapas datu analizēšanai"]
["Bezmaksas Excel apmācība tiešsaistē"]
{"$rows_empty":9}
[null,null,"Ja funkcija SUM šūnā D42 prastu runāt, tā teiktu: Saskaitiet kopā vērtības šūnās D38, D39, D40 un D41."]
[null,null,"Prece","Daudzums",null,"Prece","Daudzums"]
[null,null,"Maize",50,null,"Maize",50]
[null,null,"Virtuļi",100,null,"Virtuļi",100]
[null,null,"Cepumi",40,null,"Cepumi",40]
[null,null,"Kūkas",50,null,"Kūkas",50]
[null,null,"Pīrāgi",20,null,"Pīrāgi",20]
[]
[{"$nulls":3},{"$f":"VLOOKUP(C43,C37:D41,2,FALSE)","v":{"$error":"#N/A"}},null,"Konditorejas izstrādājumi",{"$f":"IFERROR(VLOOKUP(F43,F37:G41,2,FALSE),\"\")","v":""}]

{"sheet":"Nosacījuma funkcijas","index":9,"n_rows":123,"n_cols":34,"rows_kept":123}
["Nosacījuma funkcijas — SUMIF"]
["Ar nosacījuma funkcijām, norādot konkrētu nosacījumu vai kritērijus, varat šūnu diapazonu summēt, atrast tajā vidējo, saskaitīt vai iegūt minimālo vai maksimālo lielumu. Piemēram, cik no visiem sarakstā minētajiem augļiem ir ābolu? Vai cik apelsīnu ir Floridas šķirne?",null,"Augļi","Daudzums",null,"Augļi","Šķirne","Daudzums",{"$nulls":17},"Augļi",null,"Āboli",null,"Apelsīni",null,"Banāni",null,"Citroni"]
["Ar funkciju SUMIF varat sasummēt vērtību vienā diapazonā, pamatojoties uz konkrētu kritēriju, ko atrodat citā diapazonā, piemēram, varat saskaitīt, cik kopā ir ābolu. Atlasiet šūnu D17 un rakstiet =SUMIF(C3:C14;C17;D3:D14). SUMIF uzbūve ir šāda:",null,"Āboli",50,null,"Āboli","Fuji",50,{"$nulls":17},"Āboli",null,"Fuji",null,"Florida",null,"Cavendish",null,"Rough"]
["=SUMIF(C3:C14;C17;D3:D14)",null,"Apelsīni",20,null,"Apelsīni","Florida",20,{"$nulls":17},"Apelsīni",null,"Honeycrisp",null,"Navel",null,"Lady Finger",null,"Eureka"]
["Kuru diapazonu vēlaties aplūkot?",null,"Banāni",60,null,"Banāni","Cavendish",60,{"$nulls":17},"Banāni"]
["Kādu vērtību (tekstu vai skaitli) vēlaties meklēt?",null,"Citroni",40,null,"Citroni","Rough",40,{"$nulls":17},"Citroni"]
["Par katru atrasto atbilstību — kuru diapazonu vēlaties ieskaitīt",null,"Āboli",50,null,"Āboli","Honeycrisp",50]
["SUMIFS ir tāda pati kā funkcija SUMIF, taču tajā varat izmantot vairākus kritērijus. Šajā piemērā varat meklēt gan augli, gan šķirni, nevis tikai augli. Atlasiet šūnu H17 un rakstiet =SUMIFS(H3:H14;F3:F14;F17;G3:G14;G17). SUMIFS uzbūve ir šāda:\n",null,"Apelsīni",20,null,"Apelsīni","Navel",20]
["=SUMIFS(H3:H14;F3:F14;F17;G3:G14;G17)",null,"Banāni",60,null,"Banāni","Lady Finger",60]
["Kuru diapazonu vēlaties summēt?",null,"Citroni",40,null,"Citroni","Eureka",40]
["Šis ir pirmais diapazons, kurā jāmeklē atbilstības",null,"Āboli",50,null,"Āboli","Honeycrisp",50]
["Šie ir pirmās atbilstības kritēriji",null,"Apelsīni",20,null,"Apelsīni","Navel",20]
["Šis ir otrais diapazons, kurā jāmeklē atbilstības",null,"Banāni",60,null,"Banāni","Cavendish",60]
["Šie ir otrās atbilstības kritēriji",null,"Citroni",40,null,"Citroni","Eureka",40]
["EKSPERTU PADOMS\nKatrai augļu un šķirnes šūnai ir nolaižamais saraksts, kurā varat atlasīt dažādus augļus. Izmēģiniet to un skatieties, kā formulas automātiski atjauninās."]
["Uz leju, lai uzzinātu vairāk",null,"Augļi","SUMIF",null,"Augļi","Šķirne","SUMIFS"]
["Nākamā darbība",null,"Āboli",null,null,"Apelsīni","Florida"]
["Nosacījuma funkcijas — COUNTIF"]
["Ar COUNTIF un COUNTIFS varat saskaitīt vērtības diapazonā, ņemot vērā jūsu izvēlētus kritērijus. Šīs funkcijas nedaudz atšķiras no pārējām IF un IFS funkcijām, jo tām ir tikai kritēriju diapazons un kritēriji. Tās nevērtē vienu diapazonu un pēc tam neskatās otrā, lai apkopotu."]
["Atlasiet šūnu D64 un rakstiet =COUNTIF(C50:C61;C64). COUNTIF uzbūve ir šāda:"]
[{"$f":"COUNTIF(C50:C61,C64)","v":3}]
["Kuru diapazonu vēlaties aplūkot?"]
["Kādu vērtību (tekstu vai skaitli) vēlaties meklēt?"]
["COUNTIFS ir tāda pati kā funkcija SUMIF, taču tajā varat izmantot vairākus kritērijus. Šajā piemērā varat meklēt gan augli, gan šķirni, nevis tikai augli. Atlasiet šūnu H64 un rakstiet =COUNTIFS(F50:F61;F64;G50:G61;G64). COUNTIFS uzbūve ir šāda:\n"]
[{"$f":"COUNTIFS(F50:F61,F64,G50:G61,G64)","v":1}]
["Šis ir pirmais diapazons skaitīšanai"]
["Šie ir pirmās atbilstības kritēriji"]
["Šis ir otrais diapazons skaitīšanai"]
["Šis ir otrās atbilstības kritērijs"]
["Uz leju, lai uzzinātu vairāk"]
["Tālāk"]
["Citas nosacījuma funkcijas"]
["Jau esam aplūkojuši SUMIF, SUMIFS, COUNTIF un COUNTIFS. Tagad varat patstāvīgi izmēģināt darbu ar pārējām funkcijām, piemēram, AVERAGEIF/S, MAXIFS, MINIFS. Tām ir līdzīga uzbūve, tāpēc, tiklīdz viena formula ir uzrakstīta, funkcijas vārdu varat vienkārši aizstāt ar vajadzīgo. Esam uzrakstījuši visas funkcijas, kas nepieciešamas šūnai E106, tāpēc tās varat kopēt un ielīmēt vai vingrināšanās nolūkā rakstīt tās pats.\n\nSUMIF  =SUMIF(C92:C103;C106;E92:E103) \nSUMIFS  =SUMIFS(E92:E103;C92:C103;C106;D92:D103;D106) \nAVERAGEIF  =AVERAGEIF(C92:C103;C106;E92:E103) \nAVERAGEIFS =AVERAGEIFS(E92:E103;C92:C103;C106;D92:D103;D106)\nCOUNTIF  =COUNTIF(C92:C103;C106)\nCOUNTIFS  =COUNTIFS(C92:C103;C106;D92:D103;D106) \nMAXIFS  =MAXIFS(E92:E103;C92:C103;C106;D92:D103;D106)\nMINIFS  =MINIFS(E92:E103;C92:C103;C106;D92:D103;D106)"]
["Uz leju, lai uzzinātu vairāk"]
["Tālāk"]
["SUMIF ar vērtības argumentu"]
["Lūk, funkcijas SUMIF piemērs, izmantojot “lielāks par” (>), lai atrastu visas vērtības, kas lielākas par noteikto daudzumu:"]
[{"$f":"SUMIF(D118:D122,\">=50\")","v":200}]
["Saskaitiet dažas vērtības, pamatojoties uz šo kritēriju:"]
["...Pārskatiet šīs šūnas...\n "]
["... un, ja vērtība ir lielāka par 50, saskaitiet to.\n "]
["PIEZĪME. Ja jums ir jāveido daudz nosacījumformulu, iespējams, ka rakurstabula (PivotTable) ir piemērotāks risinājums. Papildinformāciju skatiet rakstā par rakurstabulām."]
["Papildinformācija tīmeklī"]
["Viss par funkciju SUMIF"]
["Viss par funkciju SUMIFS"]
["Viss par funkciju COUNTIF"]
["Viss par funkciju COUNTIFS"]
["Viss par funkciju AVERAGEIF"]
["Viss par funkciju AVERAGEIFS",null,"Augļi","Daudzums",null,"Augļi","Šķirne","Daudzums"]
["Viss par funkciju MINIFS",null,"Āboli",50,null,"Āboli","Fuji",50]
["Viss par funkciju MAXIFS",null,"Apelsīni",20,null,"Apelsīni","Florida",20]
["Izveidojiet nolaižamo sarakstu",null,"Banāni",60,null,"Banāni","Cavendish",60]
["Bezmaksas Excel apmācība tiešsaistē",null,"Citroni",40,null,"Citroni","Rough",40]
["Atpakaļ uz sākumu",null,"Āboli",50,null,"Āboli","Honeycrisp",50]
["Tālāk",null,"Apelsīni",20,null,"Apelsīni","Navel",20]
[null,null,"Banāni",60,null,"Banāni","Lady Finger",60]
[null,null,"Citroni",40,null,"Citroni","Eureka",40]
[null,null,"Āboli",50,null,"Āboli","Honeycrisp",50]
[null,null,"Apelsīni",20,null,"Apelsīni","Navel",20]
[null,null,"Banāni",60,null,"Banāni","Cavendish",60]
[null,null,"Citroni",40,null,"Citroni","Eureka",40]
[]
[null,null,"Augļi","COUNTIF",null,"Augļi","Šķirne","COUNTIFS"]
[null,null,"Āboli",{"$f":"COUNTIF(C50:C61,C64)","v":3},null,"Apelsīni","Florida",{"$f":"COUNTIFS(F50:F61,F64,G50:G61,G64)","v":1}]
{"$rows_empty":26}
[null,null,"Augļi","Šķirne","Daudzums"]
[null,null,"Āboli","Fuji",50]
[null,null,"Apelsīni","Florida",20]
[null,null,"Banāni","Cavendish",60]
[null,null,"Citroni","Rough",40]
[null,null,"Āboli","Honeycrisp",50]
[null,null,"Apelsīni","Navel",20]
[null,null,"Banāni","Lady Finger",60]
[null,null,"Citroni","Eureka",40]
[null,null,"Āboli","Honeycrisp",50]
[null,null,"Apelsīni","Navel",20]
[null,null,"Banāni","Cavendish",60]
[null,null,"Citroni","Eureka",40]
[]
[null,null,"Augļi","Šķirne","Izmēģiniet to"]
[null,null,"Citroni","Eureka",{"$f":"AVERAGEIFS(E92:E103,C92:C103,C106,D92:D103,D106)","v":40}]
{"$rows_empty":10}
[null,null,"Prece","Daudzums"]
[null,null,"Maize",50]
[null,null,"Virtuļi",100]
[null,null,"Cepumi",40]
[null,null,"Kūkas",50]
[null,null,"Pīrāgi",20]
[{"$nulls":3},{"$f":"SUMIF(D118:D122,\">=50\")","v":200}]

{"sheet":"Funkciju vednis","index":10,"n_rows":14,"n_cols":4,"rows_kept":14}
["Sekojiet funkciju vedņa norādēm"]
["Ja zināt vajadzīgās funkcijas nosaukumu, bet nezināt, kā to izveidot, jums var palīdzēt funkciju vednis.\n"]
["Atlasiet šūnu D10, pēc tam dodieties uz Formulas > Ievietot funkciju > lodziņā Meklējiet funkciju ierakstiet VLOOKUP un noklikšķiniet uz pogas Aiziet!. Kad redzama iezīmēta funkcija VLOOKUP, apakšā noklikšķiniet uz Labi. Sarakstā atlasot funkciju, programma Excel parāda tās sintaksi.\n"]
["Pēc tam ievadiet funkcijas argumentus attiecīgajos tekstlodziņos. Ievadot katru argumentu, programma Excel to novērtē un parāda tā rezultātu, un galarezultāts ir redzams apakšdaļā. Ievadot informāciju sadaļās, katra argumenta kritērijs tiek norādīts formas apakšā. Kad ievadīšana pabeigta, noklikšķiniet uz Labi, un programma Excel ievadīs formulu jūsu vietā.\n\n\n",null,"Augļi","Daudzums"]
["SKATIET ŠO\nBeigās būtu jāiegūst: =VLOOKUP(C10;C5:D8;2;FALSE)",null,"Āboli",50]
["NODERĪGA INFORMĀCIJA\nŠūnu un diapazonu atsauces varat ierakstīt vai atlasīt, izmantojot peli.",null,"Apelsīni",20]
["NODERĪGA INFORMĀCIJA\nIevadot informāciju katra argumenta sadaļā, argumenta apraksts tiek rādīts zemāk formā virs formulas rezultāta.\n",null,"Banāni",60]
["Atpakaļ",null,"Citroni",40]
["Tālāk"]
["Papildinformācija tīmeklī",null,"Āboli",{"$f":"VLOOKUP(C10,C5:D8,2,FALSE)","v":50}]
["Programmas Excel formulu apskats"]
["Excel funkcijas (pa kategorijām)"]
["Excel funkcijas (alfabēta secībā)"]
["Bezmaksas Excel apmācība tiešsaistē"]

{"sheet":"Formulu kļūdas","index":11,"n_rows":36,"n_cols":4,"rows_kept":36}
["Formulu kļūdu labošana"]
["Var gadīties, ka formulā ir kļūda, un programma Excel rāda šādi: #ErrorName. Kļūdas var būt noderīgas, jo tās norāda, ka kaut kas nedarbojas pareizi, taču tās var būt sarežģīti izlabot. Par laimi, ir vairākas iespējas, kas palīdz atrast kļūdas avotu un kļūdu izlabot.\n"]
["Kļūdu pārbaude — dodieties uz Formulas > Kļūdu pārbaude. Tiek ielādēts dialoglodziņš, kurā ir izklāstīts jūsu kļūdas cēlonis. Šūnā D9 kļūdas #N/A iemesls ir tas, ka nav vērtības, kas atbilstu “Ābols”. Kļūdu varat izlabot, izmantojot esošu vērtību, izvairoties no kļūdas ar funkcijas IFERROR palīdzību vai to ignorējot un zinot, ka tā pazudīs, kad izmantosit esošu vērtību.\n",null,"Augļi","Daudzums"]
["Ja noklikšķināt uz Palīdzība par šo kļūdu, tiek atvērta palīdzības tēma, kas attiecas uz kļūdas ziņojumu. Ja noklikšķināt uz Rādīt aprēķina soļus, tiek atvērts formulas novērtēšanas dialoglodziņš.\n",null,"Āboli",50]
["Ikreiz, kad noklikšķināt uz Novērtēt, programma Excel pārskata formulu pa vienai sadaļai. Ne vienmēr tā nosaka, kāpēc kļūda radusies, taču norāda kļūdas vietu. Tad varat skatīt palīdzības tēmu, lai secinātu, kas formulā ir nepareizi.\n",null,"Apelsīni",20]
["EKSPERIMENTS\nKas šeit ir nepareizi? Norāde: mēs cenšamies sasummēt (SUM) visus vienumus.",null,"Banāni",60]
["NODERĪGA INFORMĀCIJA\nNoklikšķinot uz Opcijas, varat iestatīt kārtulas, kas nosaka, kad programmā Excel kļūdas tiek rādītas vai ignorētas.\n",null,"Citroni",40]
["Atpakaļ"]
["Tālāk",null,"Ābols",{"$f":"VLOOKUP(C9,C3:D7,2,FALSE)","v":{"$error":"#N/A"}}]
["Papildinformācija tīmeklī"]
["Kļūdu noteikšana formulās"]
["Kā nepieļaut bojātas formulas"]
["Novērtējiet ligzdotu formulu soli pa solim"]
["Bezmaksas Excel apmācība tiešsaistē"]
{"$rows_empty":15}
[null,null,"Augļi","Daudzums"]
[null,null,"Āboli",50]
[null,null,"Apelsīni",20]
[null,null,"Banāni",60]
[null,null,"Citroni",40]
[]
[null,null,"Kopā",{"$f":"sume(D31:D34)","v":{"$error":"#NAME?"}}]

{"sheet":"Papildinformācija","index":12,"n_rows":5,"n_cols":1,"rows_kept":5}
["Vai jums ir citi jautājumi par Excel?"]
["Nospiediet taustiņu kombināciju ALT+Ē un ierakstiet, ko vēlaties uzzināt."]
["LinkedIn Learning. Video kursi visiem līmeņiem — no iesācēja līdz pieredzējušam lietotājam. Apgūstiet savā tempā.\n"]
["Kopiena. Uzdodiet jautājumus un sazinieties ar citiem Excel entuziastiem.\n"]
["Kādi vēl ir jaunumi?\nOffice 365 abonenti pastāvīgi saņem atjauninājumus un jaunus līdzekļus.\n\n"]